[Event "Early-Titled-Tuesday-Blitz-February-27-2024"]
[Site "Chess.com"]
[Date "2024.02.27"]
[Round "10"]
[White "Aslanov_Umid"]
[Black "Rogarcia1"]
[Result "1-0"]
[WhiteElo "2663"]
[BlackElo "2504"]
[TimeControl "180+1"]
[EndTime "9:53:33 PST"]
[Termination "Aslanov_Umid won by resignation"]

1. e4 {[%clk 0:03:00.9]} 1... c5 {[%clk 0:02:59.9]} 2. Nf3 {[%clk 0:03:00.7]}
2... d6 {[%clk 0:03:00.3]} 3. d4 {[%clk 0:03:01]} 3... cxd4 {[%clk 0:03:00.6]}
4. Nxd4 {[%clk 0:03:01.9]} 4... Nf6 {[%clk 0:03:00.5]} 5. Nc3 {[%clk 0:03:01]}
5... a6 {[%clk 0:03:00.9]} 6. Bc4 {[%clk 0:03:00.5]} 6... e6 {[%clk 0:02:59.9]}
7. Bb3 {[%clk 0:03:00.7]} 7... Be7 {[%clk 0:03:00.3]} 8. g4 {[%clk 0:03:00.7]}
8... b5 {[%clk 0:02:50.6]} 9. g5 {[%clk 0:03:00.3]} 9... Nfd7 {[%clk 0:02:50.1]}
10. Bxe6 {[%clk 0:02:59.2]} 10... Nc5 {[%clk 0:02:38.9]} 11. Bxc8 {[%clk
0:02:44.9]} 11... Qxc8 {[%clk 0:02:39.8]} 12. f3 {[%clk 0:02:33.7]} 12... Qh3
{[%clk 0:02:26.7]} 13. Nf5 {[%clk 0:02:17.1]} 13... Nbd7 {[%clk 0:01:54.8]} 14.
Nd5 {[%clk 0:02:08.3]} 14... Bd8 {[%clk 0:01:53.7]} 15. Nxg7+ {[%clk 0:01:55.1]}
15... Kf8 {[%clk 0:01:52.7]} 16. Nf5 {[%clk 0:01:56]} 16... Qg2 {[%clk
0:01:42.8]} 17. Rf1 {[%clk 0:01:48.7]} 17... Bxg5 {[%clk 0:01:42.8]} 18. Bxg5
{[%clk 0:01:38.2]} 18... Qxg5 {[%clk 0:01:43.7]} 19. Nc7 {[%clk 0:01:35.9]}
19... Rd8 {[%clk 0:01:14.2]} 20. Qxd6+ {[%clk 0:01:34.6]} 20... Kg8 {[%clk
0:01:14.5]} 21. Ke2 {[%clk 0:01:25]} 21... Qg2+ {[%clk 0:01:02.1]} 22. Rf2
{[%clk 0:01:24.8]} 22... Qg5 {[%clk 0:01:02.2]} 23. Nh6+ {[%clk 0:01:13.4]}
23... Kg7 {[%clk 0:00:58]} 24. Nf5+ {[%clk 0:01:12.9]} 24... Kg8 {[%clk
0:00:57.5]} 25. Nd5 {[%clk 0:01:04.4]} 25... h6 {[%clk 0:00:46.9]} 26. Rff1
{[%clk 0:00:59.5]} 26... Qg2+ {[%clk 0:00:44.5]} 27. Rf2 {[%clk 0:00:59.8]}
27... Qg5 {[%clk 0:00:44.5]} 28. h4 {[%clk 0:00:59.3]} 1-0

[Event "Early-Titled-Tuesday-Blitz-February-27-2024"]
[Site "Chess.com"]
[Date "2024.02.27"]
[Round "10"]
[White "Maikrosoft63"]
[Black "Batica1984"]
[Result "0-1"]
[WhiteElo "2622"]
[BlackElo "2761"]
[TimeControl "180+1"]
[EndTime "9:53:37 PST"]
[Termination "Batica1984 won by resignation"]

1. e4 {[%clk 0:02:50.5]} 1... c5 {[%clk 0:02:58]} 2. Nf3 {[%clk 0:02:50.6]} 2...
e6 {[%clk 0:02:57.9]} 3. b3 {[%clk 0:02:50.5]} 3... a6 {[%clk 0:02:57.2]} 4. Bb2
{[%clk 0:02:50.3]} 4... Nc6 {[%clk 0:02:57.1]} 5. d4 {[%clk 0:02:47.6]} 5...
cxd4 {[%clk 0:02:56.9]} 6. Nxd4 {[%clk 0:02:48.5]} 6... Qf6 {[%clk 0:02:56.1]}
7. c3 {[%clk 0:02:40.7]} 7... Bc5 {[%clk 0:02:50.5]} 8. Qd2 {[%clk 0:02:37]}
8... Nge7 {[%clk 0:02:48.8]} 9. Be2 {[%clk 0:02:32.7]} 9... d5 {[%clk
0:02:48.5]} 10. exd5 {[%clk 0:02:28.3]} 10... Nxd5 {[%clk 0:02:48.2]} 11. O-O
{[%clk 0:02:28.4]} 11... Bxd4 {[%clk 0:02:28.4]} 12. cxd4 {[%clk 0:02:29.3]}
12... O-O {[%clk 0:02:28.3]} 13. Bf3 {[%clk 0:02:19]} 13... Rd8 {[%clk 0:02:27]}
14. Na3 {[%clk 0:02:15.4]} 14... b5 {[%clk 0:02:26]} 15. Rac1 {[%clk 0:02:08.3]}
15... Bb7 {[%clk 0:02:25.1]} 16. Rc5 {[%clk 0:02:08.9]} 16... Nce7 {[%clk
0:02:18.7]} 17. Nc2 {[%clk 0:02:00.7]} 17... Nf5 {[%clk 0:02:16.9]} 18. Ne3
{[%clk 0:01:58.4]} 18... Nh4 {[%clk 0:02:11.9]} 19. Bxd5 {[%clk 0:01:54.9]}
19... Bxd5 {[%clk 0:02:11.9]} 20. Nxd5 {[%clk 0:01:52.7]} 20... Rxd5 {[%clk
0:02:12]} 21. Rxd5 {[%clk 0:01:49.6]} 21... exd5 {[%clk 0:02:12.9]} 22. Qd3
{[%clk 0:01:39.9]} 22... Re8 {[%clk 0:02:10.3]} 23. Qg3 {[%clk 0:01:27.9]} 23...
h5 {[%clk 0:02:07.5]} 24. h3 {[%clk 0:01:24.2]} 24... Nf5 {[%clk 0:01:52.5]} 25.
Qf4 {[%clk 0:01:21.4]} 25... Re4 {[%clk 0:01:53.1]} 26. Qb8+ {[%clk 0:01:20]}
26... Kh7 {[%clk 0:01:53.7]} 27. Qb7 {[%clk 0:01:13.1]} 27... Qe6 {[%clk
0:01:49.1]} 28. a4 {[%clk 0:01:00.4]} 28... bxa4 {[%clk 0:01:40.2]} 29. bxa4
{[%clk 0:01:01.3]} 29... Re2 {[%clk 0:01:40.2]} 30. Bc3 {[%clk 0:00:55.2]} 30...
Nh4 {[%clk 0:01:36.2]} 31. a5 {[%clk 0:00:46]} 31... Qe4 {[%clk 0:01:34]} 32.
Qb1 {[%clk 0:00:37.2]} 32... Rc2 {[%clk 0:01:33.4]} 33. f3 {[%clk 0:00:32.3]}
33... Qe2 {[%clk 0:01:32.8]} 0-1

[Event "Early-Titled-Tuesday-Blitz-February-27-2024"]
[Site "Chess.com"]
[Date "2024.02.27"]
[Round "10"]
[White "UK_23"]
[Black "viktorskliarov"]
[Result "0-1"]
[WhiteElo "2381"]
[BlackElo "2588"]
[TimeControl "180+1"]
[EndTime "9:53:39 PST"]
[Termination "viktorskliarov won by resignation"]

1. e4 {[%clk 0:03:00.9]} 1... c5 {[%clk 0:02:53.7]} 2. Nf3 {[%clk 0:03:00.4]}
2... Nc6 {[%clk 0:02:53.7]} 3. Bb5 {[%clk 0:03:00.3]} 3... e6 {[%clk 0:02:53.8]}
4. O-O {[%clk 0:02:59.6]} 4... Nge7 {[%clk 0:02:51.1]} 5. Re1 {[%clk 0:02:59.8]}
5... Nd4 {[%clk 0:02:51.4]} 6. Nxd4 {[%clk 0:02:59.4]} 6... cxd4 {[%clk
0:02:52.3]} 7. c3 {[%clk 0:02:59.7]} 7... a6 {[%clk 0:02:52.8]} 8. Bf1 {[%clk
0:02:59.5]} 8... Nc6 {[%clk 0:02:53]} 9. cxd4 {[%clk 0:02:57.1]} 9... Nxd4
{[%clk 0:02:51.4]} 10. Nc3 {[%clk 0:02:56.6]} 10... Bc5 {[%clk 0:02:50.4]} 11.
d3 {[%clk 0:02:54.4]} 11... O-O {[%clk 0:02:50.5]} 12. Be3 {[%clk 0:02:53.6]}
12... b5 {[%clk 0:02:48.7]} 13. Rc1 {[%clk 0:02:52.8]} 13... Bb6 {[%clk
0:02:35.2]} 14. a4 {[%clk 0:02:46.6]} 14... b4 {[%clk 0:02:27.9]} 15. Ne2 {[%clk
0:02:36.7]} 15... Nxe2+ {[%clk 0:02:26.9]} 16. Rxe2 {[%clk 0:02:37.6]} 16... Bb7
{[%clk 0:02:24.7]} 17. Qd2 {[%clk 0:02:29.2]} 17... a5 {[%clk 0:02:19.1]} 18. b3
{[%clk 0:02:26.8]} 18... f5 {[%clk 0:02:08.4]} 19. Bxb6 {[%clk 0:02:20.7]} 19...
Qxb6 {[%clk 0:02:06.7]} 20. Qe3 {[%clk 0:02:21.3]} 20... Qxe3 {[%clk 0:01:45.7]}
21. Rxe3 {[%clk 0:02:21]} 21... f4 {[%clk 0:01:45.9]} 22. Ree1 {[%clk
0:02:20.1]} 22... Rac8 {[%clk 0:01:36.5]} 23. f3 {[%clk 0:02:14.7]} 23... e5
{[%clk 0:01:20.8]} 24. Kf2 {[%clk 0:02:14.3]} 24... Kf7 {[%clk 0:01:19.4]} 25.
Ke2 {[%clk 0:02:14.5]} 25... Ke6 {[%clk 0:01:19.2]} 26. Kd2 {[%clk 0:02:14.6]}
26... d5 {[%clk 0:01:17.8]} 27. Rxc8 {[%clk 0:02:09.9]} 27... Rxc8 {[%clk
0:01:17.2]} 28. Rc1 {[%clk 0:02:10.8]} 28... Rxc1 {[%clk 0:01:09.8]} 29. Kxc1
{[%clk 0:02:11.7]} 29... Ba6 {[%clk 0:01:10]} 30. Kd2 {[%clk 0:02:06.8]} 30...
dxe4 {[%clk 0:00:43.9]} 31. fxe4 {[%clk 0:02:07.7]} 31... Kd6 {[%clk 0:00:41.8]}
32. Be2 {[%clk 0:02:08]} 32... Bc8 {[%clk 0:00:41]} 33. Kc2 {[%clk 0:02:01.5]}
33... Kc5 {[%clk 0:00:38.8]} 34. Kd2 {[%clk 0:02:01.8]} 34... Kd4 {[%clk
0:00:38.9]} 35. Bd1 {[%clk 0:02:01.9]} 35... Be6 {[%clk 0:00:38.8]} 36. Bc2
{[%clk 0:01:58.2]} 36... g5 {[%clk 0:00:36.7]} 37. Bd1 {[%clk 0:01:57.5]} 37...
g4 {[%clk 0:00:35.7]} 38. Bc2 {[%clk 0:01:55.2]} 38... h5 {[%clk 0:00:35.6]} 39.
Bd1 {[%clk 0:01:55.5]} 39... h4 {[%clk 0:00:34.9]} 40. Bc2 {[%clk 0:01:49.8]}
40... g3 {[%clk 0:00:19.2]} 41. hxg3 {[%clk 0:01:48.6]} 41... fxg3 {[%clk
0:00:19.1]} 42. Ke2 {[%clk 0:01:46.1]} 42... Bg4+ {[%clk 0:00:18.8]} 43. Kf1
{[%clk 0:01:44]} 43... Ke3 {[%clk 0:00:18.2]} 0-1

[Event "Early-Titled-Tuesday-Blitz-February-27-2024"]
[Site "Chess.com"]
[Date "2024.02.27"]
[Round "10"]
[White "Juicy_Fork"]
[Black "Matols"]
[Result "1-0"]
[WhiteElo "2533"]
[BlackElo "2405"]
[TimeControl "180+1"]
[EndTime "9:53:48 PST"]
[Termination "Juicy_Fork won on time"]

1. e4 {[%clk 0:03:00.9]} 1... c6 {[%clk 0:02:59.7]} 2. d4 {[%clk 0:03:00]} 2...
d5 {[%clk 0:03:00]} 3. Nd2 {[%clk 0:03:00.3]} 3... dxe4 {[%clk 0:03:00]} 4. Nxe4
{[%clk 0:03:01.2]} 4... Nf6 {[%clk 0:03:00.3]} 5. Ng5 {[%clk 0:03:01.8]} 5... h6
{[%clk 0:02:57.9]} 6. Nxf7 {[%clk 0:03:02.3]} 6... Kxf7 {[%clk 0:02:58.8]} 7.
Nf3 {[%clk 0:03:01.9]} 7... Bf5 {[%clk 0:02:57.4]} 8. Bc4+ {[%clk 0:03:01.6]}
8... e6 {[%clk 0:02:57]} 9. Ne5+ {[%clk 0:03:02.2]} 9... Ke7 {[%clk 0:02:38.3]}
10. g4 {[%clk 0:02:58.7]} 10... Be4 {[%clk 0:02:33.5]} 11. f3 {[%clk 0:02:56.7]}
11... Bd5 {[%clk 0:02:21.4]} 12. Ng6+ {[%clk 0:02:53.1]} 12... Ke8 {[%clk
0:02:18.7]} 13. Bxd5 {[%clk 0:02:47.4]} 13... Qxd5 {[%clk 0:02:11.3]} 14. Nxh8
{[%clk 0:02:47.5]} 14... Nbd7 {[%clk 0:02:00]} 15. Bf4 {[%clk 0:02:42.7]} 15...
Nxg4 {[%clk 0:01:50.8]} 16. Qd3 {[%clk 0:02:23.3]} 16... Ngf6 {[%clk 0:00:31.7]}
17. Qg6+ {[%clk 0:02:17.1]} 17... Kd8 {[%clk 0:00:31.4]} 18. O-O-O {[%clk
0:02:14.5]} 18... Qxa2 {[%clk 0:00:30]} 19. Nf7+ {[%clk 0:02:12.8]} 19... Kc8
{[%clk 0:00:29.5]} 20. c3 {[%clk 0:02:07.5]} 20... Qa1+ {[%clk 0:00:19.3]} 21.
Kc2 {[%clk 0:02:05]} 21... Qa4+ {[%clk 0:00:19.8]} 22. Kb1 {[%clk 0:02:05.3]}
22... a5 {[%clk 0:00:18]} 23. Nd6+ {[%clk 0:02:03.6]} 23... Bxd6 {[%clk
0:00:15.4]} 24. Bxd6 {[%clk 0:02:04.5]} 24... b5 {[%clk 0:00:14.7]} 25. Qxg7
{[%clk 0:02:04.1]} 25... b4 {[%clk 0:00:13.8]} 26. Rc1 {[%clk 0:01:53]} 26... b3
{[%clk 0:00:13]} 27. Ba3 {[%clk 0:01:52.8]} 27... Qb5 {[%clk 0:00:11.8]} 28.
Rhe1 {[%clk 0:01:46.3]} 28... Qd3+ {[%clk 0:00:11.3]} 29. Ka1 {[%clk 0:01:46.4]}
29... a4 {[%clk 0:00:09.9]} 30. Rxe6 {[%clk 0:01:42.4]} 30... Ra5 {[%clk
0:00:09.9]} 31. Rxc6+ {[%clk 0:01:41.2]} 31... Kb7 {[%clk 0:00:09.4]} 32. Rxf6
{[%clk 0:01:41.1]} 32... Rd5 {[%clk 0:00:07.2]} 33. Rd6 {[%clk 0:01:39.7]} 33...
Rxd6 {[%clk 0:00:02.6]} 34. Bxd6 {[%clk 0:01:40.6]} 34... Kc6 {[%clk 0:00:03.2]}
35. Ba3 {[%clk 0:01:39.7]} 35... Qd2 {[%clk 0:00:02.7]} 36. Qg6+ {[%clk
0:01:38.6]} 1-0

[Event "Early-Titled-Tuesday-Blitz-February-27-2024"]
[Site "Chess.com"]
[Date "2024.02.27"]
[Round "10"]
[White "Shuvalov"]
[Black "1mbl4"]
[Result "0-1"]
[WhiteElo "2508"]
[BlackElo "2620"]
[TimeControl "180+1"]
[EndTime "9:53:50 PST"]
[Termination "1mbl4 won by resignation"]

1. d4 {[%clk 0:02:55]} 1... g6 {[%clk 0:02:58]} 2. c4 {[%clk 0:02:55.1]} 2...
Bg7 {[%clk 0:02:58.4]} 3. e4 {[%clk 0:02:54.7]} 3... d6 {[%clk 0:02:57.6]} 4.
Nc3 {[%clk 0:02:54.2]} 4... Nf6 {[%clk 0:02:56.7]} 5. Nf3 {[%clk 0:02:54.1]}
5... O-O {[%clk 0:02:56.9]} 6. Be2 {[%clk 0:02:54.3]} 6... Bg4 {[%clk
0:02:56.1]} 7. Be3 {[%clk 0:02:53.8]} 7... Nfd7 {[%clk 0:02:54.4]} 8. Ng1 {[%clk
0:02:53.9]} 8... Bxe2 {[%clk 0:02:52.7]} 9. Ngxe2 {[%clk 0:02:54.8]} 9... Nc6
{[%clk 0:02:40.3]} 10. O-O {[%clk 0:02:52.6]} 10... e5 {[%clk 0:02:40]} 11. d5
{[%clk 0:02:49.2]} 11... Ne7 {[%clk 0:02:40.2]} 12. b4 {[%clk 0:02:47.2]} 12...
f5 {[%clk 0:02:40]} 13. f3 {[%clk 0:02:47.3]} 13... a5 {[%clk 0:02:36.8]} 14. a3
{[%clk 0:02:45]} 14... fxe4 {[%clk 0:02:15.3]} 15. fxe4 {[%clk 0:02:43.2]} 15...
Rxf1+ {[%clk 0:02:14.9]} 16. Qxf1 {[%clk 0:02:42.9]} 16... Nf6 {[%clk
0:02:15.3]} 17. h3 {[%clk 0:02:27.2]} 17... Nh5 {[%clk 0:02:12.6]} 18. c5 {[%clk
0:02:11.8]} 18... Nf4 {[%clk 0:02:10.8]} 19. Rc1 {[%clk 0:01:57.8]} 19... axb4
{[%clk 0:02:08.8]} 20. axb4 {[%clk 0:01:58.7]} 20... Ra3 {[%clk 0:02:03]} 21.
Bxf4 {[%clk 0:01:40]} 21... exf4 {[%clk 0:02:00]} 22. Qxf4 {[%clk 0:01:40.5]}
22... Be5 {[%clk 0:01:55.9]} 23. Qg4 {[%clk 0:01:33.7]} 23... Kg7 {[%clk
0:01:39.9]} 24. cxd6 {[%clk 0:01:25.7]} 24... cxd6 {[%clk 0:01:38.1]} 25. Kh1
{[%clk 0:01:16.5]} 25... Ng8 {[%clk 0:01:34.8]} 26. Nb5 {[%clk 0:01:12]} 26...
Nf6 {[%clk 0:01:33.9]} 27. Qe6 {[%clk 0:00:56.1]} 27... Re3 {[%clk 0:01:33]} 28.
Rc7+ {[%clk 0:00:55]} 28... Kh6 {[%clk 0:01:32.8]} 29. Ng1 {[%clk 0:00:50.4]}
29... Nxe4 {[%clk 0:01:27.7]} 30. g4 {[%clk 0:00:31.4]} 30... Qh4 {[%clk
0:01:14]} 31. g5+ {[%clk 0:00:31.4]} 31... Nxg5 {[%clk 0:01:10.9]} 32. Qd7
{[%clk 0:00:25.2]} 32... Qe4+ {[%clk 0:01:08.8]} 0-1

[Event "Early-Titled-Tuesday-Blitz-February-27-2024"]
[Site "Chess.com"]
[Date "2024.02.27"]
[Round "10"]
[White "kleinebeer98"]
[Black "Polish_fighter3000"]
[Result "0-1"]
[WhiteElo "2903"]
[BlackElo "3079"]
[TimeControl "180+1"]
[EndTime "9:53:57 PST"]
[Termination "Polish_fighter3000 won by resignation"]

1. e4 {[%clk 0:03:00.9]} 1... c5 {[%clk 0:02:58]} 2. Nf3 {[%clk 0:03:01]} 2...
d6 {[%clk 0:02:57.5]} 3. d4 {[%clk 0:03:01.5]} 3... cxd4 {[%clk 0:02:58.4]} 4.
Nxd4 {[%clk 0:03:02.3]} 4... Nf6 {[%clk 0:02:58.8]} 5. Nc3 {[%clk 0:03:02.9]}
5... a6 {[%clk 0:02:59.5]} 6. a3 {[%clk 0:03:03.3]} 6... e5 {[%clk 0:02:53.9]}
7. Nf5 {[%clk 0:03:03.7]} 7... d5 {[%clk 0:02:53.3]} 8. Bg5 {[%clk 0:03:04.1]}
8... d4 {[%clk 0:02:50.5]} 9. Bxf6 {[%clk 0:03:02.3]} 9... gxf6 {[%clk
0:02:47.5]} 10. Nb1 {[%clk 0:03:03]} 10... Qb6 {[%clk 0:02:41.8]} 11. Nd2 {[%clk
0:02:58.2]} 11... Qxb2 {[%clk 0:02:33.5]} 12. Bc4 {[%clk 0:02:57.3]} 12... h5
{[%clk 0:02:31]} 13. Rb1 {[%clk 0:02:45.3]} 13... Qxa3 {[%clk 0:02:29.9]} 14.
O-O {[%clk 0:02:44.7]} 14... b5 {[%clk 0:02:12.3]} 15. Bd5 {[%clk 0:02:44.7]}
15... Ra7 {[%clk 0:02:12.8]} 16. Rb3 {[%clk 0:02:05.6]} 16... Qc5 {[%clk
0:02:12.3]} 17. c4 {[%clk 0:02:06.2]} 17... dxc3 {[%clk 0:02:09.8]} 18. Nb1
{[%clk 0:02:06.1]} 18... c2 {[%clk 0:02:04.4]} 19. Qf3 {[%clk 0:01:59.2]} 19...
cxb1=Q {[%clk 0:01:56.5]} 20. Rfxb1 {[%clk 0:02:00.1]} 20... Rc7 {[%clk
0:01:54.3]} 21. Rd3 {[%clk 0:01:49.7]} 21... Be6 {[%clk 0:01:38.4]} 22. Rbd1
{[%clk 0:01:48.3]} 22... Nd7 {[%clk 0:01:38.3]} 23. Bxe6 {[%clk 0:01:42.7]}
23... fxe6 {[%clk 0:01:39.2]} 24. Nd6+ {[%clk 0:01:43.5]} 24... Bxd6 {[%clk
0:01:39.2]} 25. Rxd6 {[%clk 0:01:44.4]} 25... Ke7 {[%clk 0:01:14.6]} 26. Qg3
{[%clk 0:01:41.9]} 26... Qxd6 {[%clk 0:01:12.9]} 27. Qg7+ {[%clk 0:01:42.5]}
27... Ke8 {[%clk 0:01:12.5]} 28. Qxh8+ {[%clk 0:01:42.7]} 28... Qf8 {[%clk
0:01:04.5]} 29. Qxh5+ {[%clk 0:01:43.4]} 29... Ke7 {[%clk 0:01:05.1]} 30. h4
{[%clk 0:01:32]} 30... b4 {[%clk 0:01:05.5]} 31. Qh7+ {[%clk 0:01:26.4]} 31...
Qf7 {[%clk 0:01:00.1]} 32. Qh8 {[%clk 0:01:26.7]} 32... Nf8 {[%clk 0:01:00.1]}
33. Qh6 {[%clk 0:01:19.3]} 33... Rd7 {[%clk 0:00:57.7]} 34. Rb1 {[%clk
0:01:18.1]} 34... Qh7 {[%clk 0:00:53.3]} 35. Qe3 {[%clk 0:01:17.4]} 35... Qxh4
{[%clk 0:00:52.8]} 36. Qc5+ {[%clk 0:01:12.2]} 36... Kf7 {[%clk 0:00:52.9]} 37.
Qxb4 {[%clk 0:01:13.1]} 37... Qg4 {[%clk 0:00:46.9]} 38. Qa4 {[%clk 0:01:10.5]}
38... Rd4 {[%clk 0:00:43.7]} 39. Rb7+ {[%clk 0:01:10.1]} 39... Kg8 {[%clk
0:00:43.6]} 40. Qa3 {[%clk 0:01:02.3]} 40... Rd1+ {[%clk 0:00:41.1]} 41. Kh2
{[%clk 0:01:02.8]} 41... Qh4+ {[%clk 0:00:41.5]} 42. Qh3 {[%clk 0:01:01.9]}
42... Qxh3+ {[%clk 0:00:40.7]} 43. Kxh3 {[%clk 0:01:01.9]} 43... Rd7 {[%clk
0:00:38.9]} 0-1

[Event "Early-Titled-Tuesday-Blitz-February-27-2024"]
[Site "Chess.com"]
[Date "2024.02.27"]
[Round "10"]
[White "Rud_Makarian"]
[Black "AryanTari"]
[Result "0-1"]
[WhiteElo "3086"]
[BlackElo "2949"]
[TimeControl "180+1"]
[EndTime "9:53:59 PST"]
[Termination "AryanTari won by resignation"]

1. c4 {[%clk 0:03:00.9]} 1... e5 {[%clk 0:02:51.7]} 2. Nc3 {[%clk 0:03:01.1]}
2... Nf6 {[%clk 0:02:50]} 3. Nf3 {[%clk 0:03:01.2]} 3... Nc6 {[%clk 0:02:48.8]}
4. e3 {[%clk 0:03:01.7]} 4... Bb4 {[%clk 0:02:44.5]} 5. Qc2 {[%clk 0:03:02]}
5... Bxc3 {[%clk 0:02:44.3]} 6. Qxc3 {[%clk 0:03:02.9]} 6... Qe7 {[%clk
0:02:41.9]} 7. a3 {[%clk 0:03:03.4]} 7... O-O {[%clk 0:02:40.5]} 8. b4 {[%clk
0:03:03.3]} 8... d5 {[%clk 0:02:38.4]} 9. cxd5 {[%clk 0:03:04.2]} 9... Nxd5
{[%clk 0:02:38.6]} 10. Qb3 {[%clk 0:03:04.9]} 10... Be6 {[%clk 0:02:14.6]} 11.
Qc2 {[%clk 0:03:05.1]} 11... a6 {[%clk 0:02:05.6]} 12. Bb2 {[%clk 0:03:05.2]}
12... f6 {[%clk 0:02:05.6]} 13. Bd3 {[%clk 0:03:00.5]} 13... g5 {[%clk
0:01:47.1]} 14. O-O {[%clk 0:02:53.1]} 14... Rad8 {[%clk 0:01:38.3]} 15. Be4
{[%clk 0:02:22.9]} 15... f5 {[%clk 0:01:34.1]} 16. Bxd5 {[%clk 0:02:22.7]} 16...
Bxd5 {[%clk 0:01:33.5]} 17. Ne1 {[%clk 0:02:17]} 17... g4 {[%clk 0:01:29.3]} 18.
Qc3 {[%clk 0:02:07.9]} 18... Rd6 {[%clk 0:01:28.2]} 19. Nd3 {[%clk 0:01:55.4]}
19... Re8 {[%clk 0:01:03.9]} 20. f4 {[%clk 0:00:53.4]} 20... gxf3 {[%clk
0:00:59.9]} 21. gxf3 {[%clk 0:00:53.6]} 21... Rg6+ {[%clk 0:00:44.9]} 22. Kf2
{[%clk 0:00:50.6]} 22... Qh4+ {[%clk 0:00:37.2]} 23. Ke2 {[%clk 0:00:51]} 23...
Nd4+ {[%clk 0:00:34.9]} 24. Kd1 {[%clk 0:00:40.4]} 24... Bb3+ {[%clk 0:00:33.8]}
25. Qxb3+ {[%clk 0:00:37.9]} 25... Nxb3 {[%clk 0:00:33.8]} 26. Rb1 {[%clk
0:00:38.8]} 26... Qc4 {[%clk 0:00:32.4]} 0-1

[Event "Early-Titled-Tuesday-Blitz-February-27-2024"]
[Site "Chess.com"]
[Date "2024.02.27"]
[Round "10"]
[White "mightysmasher"]
[Black "Brave_spirit12"]
[Result "0-1"]
[WhiteElo "2544"]
[BlackElo "2700"]
[TimeControl "180+1"]
[EndTime "9:54:01 PST"]
[Termination "Brave_spirit12 won by checkmate"]

1. e4 {[%clk 0:03:00.9]} 1... e6 {[%clk 0:02:57]} 2. d4 {[%clk 0:03:00.6]} 2...
d5 {[%clk 0:02:57.9]} 3. exd5 {[%clk 0:03:00.2]} 3... exd5 {[%clk 0:02:56.1]} 4.
Nf3 {[%clk 0:03:01.1]} 4... Nc6 {[%clk 0:02:54.4]} 5. Bd3 {[%clk 0:03:01.4]}
5... Bd6 {[%clk 0:02:51.6]} 6. O-O {[%clk 0:03:00.1]} 6... Nge7 {[%clk 0:02:52]}
7. c3 {[%clk 0:03:00]} 7... Bg4 {[%clk 0:02:49.2]} 8. Re1 {[%clk 0:02:59.9]}
8... Qd7 {[%clk 0:02:42.7]} 9. b4 {[%clk 0:02:59.3]} 9... O-O-O {[%clk
0:02:42.8]} 10. a4 {[%clk 0:02:58.9]} 10... h5 {[%clk 0:02:41.4]} 11. a5 {[%clk
0:02:58.5]} 11... h4 {[%clk 0:02:40.8]} 12. b5 {[%clk 0:02:58.1]} 12... Nb8
{[%clk 0:02:26.2]} 13. b6 {[%clk 0:02:57.9]} 13... a6 {[%clk 0:02:24.5]} 14.
bxc7 {[%clk 0:02:55.2]} 14... Qxc7 {[%clk 0:02:25.4]} 15. h3 {[%clk 0:02:35.9]}
15... Bh5 {[%clk 0:02:15.9]} 16. Ba3 {[%clk 0:02:22.2]} 16... g5 {[%clk
0:01:31]} 17. Bxd6 {[%clk 0:02:07.4]} 17... Rxd6 {[%clk 0:01:31.9]} 18. Qe2
{[%clk 0:02:05.3]} 18... Re6 {[%clk 0:01:25.8]} 19. Qd1 {[%clk 0:01:59.8]} 19...
Bxf3 {[%clk 0:01:25]} 20. gxf3 {[%clk 0:01:57.5]} 20... Qf4 {[%clk 0:01:23.6]}
21. Nd2 {[%clk 0:01:50.9]} 21... Nbc6 {[%clk 0:01:20.5]} 22. Rxe6 {[%clk
0:01:45.6]} 22... fxe6 {[%clk 0:01:21.4]} 23. Nb3 {[%clk 0:01:45]} 23... Rf8
{[%clk 0:01:17.2]} 24. Be2 {[%clk 0:01:40.5]} 24... g4 {[%clk 0:01:11.9]} 25.
hxg4 {[%clk 0:01:37.2]} 25... h3 {[%clk 0:01:12.2]} 26. Nc5 {[%clk 0:01:35.6]}
26... Nd8 {[%clk 0:01:08]} 27. Rb1 {[%clk 0:01:30.2]} 27... Nec6 {[%clk
0:01:04.8]} 28. Qb3 {[%clk 0:01:26.6]} 28... Qd2 {[%clk 0:00:53.3]} 29. Nxe6
{[%clk 0:00:52.7]} 29... Qxe2 {[%clk 0:00:46]} 30. Nxd8 {[%clk 0:00:33.6]} 30...
h2+ {[%clk 0:00:44.5]} 31. Kxh2 {[%clk 0:00:28.9]} 31... Qxf2+ {[%clk
0:00:43.8]} 32. Kh3 {[%clk 0:00:29.4]} 32... Rh8# {[%clk 0:00:44.5]} 0-1

[Event "Early-Titled-Tuesday-Blitz-February-27-2024"]
[Site "Chess.com"]
[Date "2024.02.27"]
[Round "10"]
[White "GelmanAlexander"]
[Black "Der_Balak_3Halak"]
[Result "0-1"]
[WhiteElo "2686"]
[BlackElo "2469"]
[TimeControl "180+1"]
[EndTime "9:54:04 PST"]
[Termination "Der_Balak_3Halak won by resignation"]

1. d4 {[%clk 0:02:50.8]} 1... d5 {[%clk 0:02:58.7]} 2. Nc3 {[%clk 0:02:46.4]}
2... Nf6 {[%clk 0:02:56.5]} 3. Bf4 {[%clk 0:02:46.7]} 3... e6 {[%clk 0:02:56.3]}
4. Nb5 {[%clk 0:02:46.6]} 4... Na6 {[%clk 0:02:55.6]} 5. e3 {[%clk 0:02:34.8]}
5... c6 {[%clk 0:02:53.8]} 6. Nc3 {[%clk 0:02:34.3]} 6... Bd6 {[%clk 0:02:54.4]}
7. Nf3 {[%clk 0:02:34.1]} 7... Bxf4 {[%clk 0:02:52.6]} 8. exf4 {[%clk
0:02:34.1]} 8... b5 {[%clk 0:02:50.6]} 9. Ne5 {[%clk 0:02:31.2]} 9... Qb6 {[%clk
0:02:40.6]} 10. a4 {[%clk 0:02:28.1]} 10... b4 {[%clk 0:02:37.4]} 11. a5 {[%clk
0:02:28.2]} 11... Qc7 {[%clk 0:02:30.9]} 12. Na4 {[%clk 0:02:19.6]} 12... Nd7
{[%clk 0:02:14.6]} 13. Bd3 {[%clk 0:01:51.9]} 13... O-O {[%clk 0:02:08.7]} 14.
Qe2 {[%clk 0:01:46.6]} 14... Nab8 {[%clk 0:02:01.3]} 15. h4 {[%clk 0:01:19.1]}
15... f5 {[%clk 0:01:38.7]} 16. g4 {[%clk 0:01:12.8]} 16... Qd8 {[%clk
0:01:14.3]} 17. gxf5 {[%clk 0:01:00.4]} 17... exf5 {[%clk 0:01:15.2]} 18. O-O-O
{[%clk 0:00:55.1]} 18... Qxa5 {[%clk 0:01:11.3]} 19. b3 {[%clk 0:00:51.6]} 19...
Nxe5 {[%clk 0:01:09.5]} 20. Qxe5 {[%clk 0:00:43.7]} 20... Nd7 {[%clk 0:00:57.1]}
21. Qe6+ {[%clk 0:00:43.6]} 21... Kh8 {[%clk 0:00:56.5]} 22. Rhg1 {[%clk
0:00:34.6]} 22... Nb6 {[%clk 0:00:36.5]} 23. Rxg7 {[%clk 0:00:29.6]} 23... Bxe6
{[%clk 0:00:28.1]} 0-1